bitfinex-derivatives/quotes_BTCF0:USTF0_20250609
["timestamp","ask_amount","ask_price","bid_price","bid_amount"]
[1749430870905,1.57059493,105670.0,105660.0,0.1136]
[1749430874424,1.99967493,105670.0,105660.0,0.1136]
[1749430875224,1.99969665,105670.0,105660.0,0.1136]
[1749430875612,2.07704323,105670.0,105660.0,0.1136]
[1749430877318,0.1891944,105660.0,105650.0,0.20682082]
[1749430877522,1.10599455,105660.0,105650.0,0.31602082]
[1749430877823,1.10599455,105660.0,105650.0,0.1093416]
[1749430878124,1.10599455,105660.0,105650.0,0.1095416]
[1749430878917,1.10599455,105660.0,105650.0,0.25707954]
[1749430879227,1.10601039,105660.0,105650.0,0.25707954]
[1749430880020,1.10601039,105660.0,105650.0,0.26113614]
[1749430884127,0.5499944,105660.0,105650.0,0.26113614]
[1749430884317,0.5499944,105660.0,105650.0,0.56756443]
[1749430884521,1.0924744,105660.0,105650.0,0.56756443]
[1749430884829,1.0924744,105660.0,105650.0,0.77424365]
[1749430885919,1.0924344,105660.0,105650.0,0.86889132]
[1749430886319,1.0924344,105660.0,105650.0,0.72135338]
[1749430888233,1.0924344,105660.0,105650.0,0.82135338]
[1749430895734,1.0923144,105660.0,105650.0,0.82135338]
[1749430896436,1.0923144,105660.0,105650.0,0.60413739]
[1749430900335,1.20953039,105660.0,105650.0,0.53203739]
[1749430900641,1.27763039,105660.0,105650.0,0.53203739]
[1749430900938,1.27763039,105660.0,105650.0,0.21087742]
[1749430901142,1.31183039,105660.0,105650.0,0.35861635]
[1749430901540,1.31183039,105660.0,105650.0,0.15193713]
[1749430901737,1.31183039,105660.0,105650.0,0.15213713]
[1749430901929,1.31183039,105660.0,105650.0,0.15193713]
[1749430902135,1.31183039,105660.0,105650.0,0.15213713]
[1749430904343,1.42904638,105660.0,105650.0,0.15213713]
[1749430904744,1.1946144,105660.0,105650.0,0.0043982]
[1749430905042,1.1946144,105660.0,105650.0,0.15193713]
[1749430905043,1.31183039,105660.0,105650.0,0.15193713]
[1749430905244,1.31183039,105660.0,105650.0,0.15213713]
[1749430905437,1.31183039,105660.0,105650.0,0.15193713]
[1749430905637,1.31183039,105660.0,105650.0,0.15213713]
[1749430907543,1.31183039,105660.0,105650.0,0.0041982]
[1749430907749,1.31183039,105660.0,105650.0,0.0043982]
[1749430908042,1.31183039,105660.0,105650.0,0.15213713]
[1749430908742,1.31183039,105660.0,105650.0,0.0043982]
[1749430908947,1.31183039,105660.0,105650.0,0.15213713]
[1749430909135,1.31183039,105660.0,105650.0,0.0043982]
[1749430909341,1.31183039,105660.0,105650.0,0.15213713]
[1749430909539,1.31183039,105660.0,105650.0,0.0043982]
[1749430909941,1.42904638,105660.0,105650.0,0.0043982]
[1749430910141,1.78984638,105660.0,105650.0,0.0053982]
[1749430910944,1.67263039,105660.0,105650.0,0.15313713]
[1749430911142,1.67263039,105660.0,105650.0,0.0053982]
[1749430911850,1.78984638,105660.0,105650.0,0.0053982]
[1749430912957,1.67263039,105660.0,105650.0,0.0053982]
[1749430918560,1.67235039,105660.0,105650.0,0.0053982]
[1749430922962,1.67235039,105660.0,105650.0,0.0396982]
[1749430923762,1.67235039,105660.0,105650.0,0.18743713]
[1749430924456,0.9788944,105660.0,105650.0,0.18743713]
[1749430924660,0.9107944,105660.0,105650.0,0.49386522]
[1749430924962,0.9107944,105660.0,105650.0,0.96329211]
[1749430924963,1.0143144,105660.0,105650.0,0.96329211]
[1749430925262,1.4525144,105660.0,105650.0,0.81555318]
[1749430927756,1.4525144,105660.0,105650.0,0.55670687]
[1749430927961,1.56973039,105660.0,105650.0,0.35002765]
[1749430930360,1.63723039,105660.0,105650.0,0.15277998]
[1749430930559,1.78944638,105660.0,105650.0,0.15277998]
[1749430930763,1.78944638,105660.0,105650.0,0.15297998]
[1749430930963,1.78944638,105660.0,105650.0,0.15277998]
[1749430931162,1.78944638,105660.0,105650.0,0.15297998]
[1749430931363,1.67223039,105660.0,105650.0,0.15297998]
[1749430932456,1.67223039,105660.0,105650.0,0.15277998]
[1749430932658,1.78944638,105660.0,105650.0,0.15297998]
[1749430933370,1.78944638,105660.0,105650.0,0.0053982]
[1749430943574,1.06784638,105660.0,105650.0,0.0053982]
[1749430943779,1.78944638,105660.0,105650.0,0.0053982]
[1749430945868,1.78944638,105660.0,105650.0,0.0051982]
[1749430946068,1.78944638,105660.0,105650.0,0.0053982]
[1749430946277,1.0132944,105660.0,105650.0,0.0053982]
[1749430946479,1.78904638,105660.0,105650.0,0.0053982]
[1749430949679,1.13051039,105660.0,105650.0,0.0053982]
[1749430949880,1.63679039,105660.0,105650.0,0.0053982]
[1749430950082,1.63679039,105660.0,105650.0,0.1048982]
[1749430950483,1.63679039,105660.0,105650.0,0.0725982]
[1749430951684,1.63679039,105660.0,105650.0,0.1104582]
[1749430953485,1.63679039,105660.0,105650.0,0.0772582]
[1749430953685,1.67029039,105660.0,105650.0,0.0772582]
[1749430954386,1.78750638,105660.0,105650.0,0.0772582]
[1749430956382,1.67029039,105660.0,105650.0,0.0772582]
[1749430957281,1.67021039,105660.0,105650.0,0.0772582]
[1749430957882,1.78742638,105660.0,105650.0,0.0772582]
[1749430958083,1.67021039,105660.0,105650.0,0.0772582]
[1749430958383,1.63671039,105660.0,105650.0,0.0772582]
[1749430959289,1.63671039,105660.0,105650.0,0.1093582]
[1749430959290,1.75392638,105660.0,105650.0,0.1093582]
[1749430959784,1.75392638,105660.0,105650.0,0.1417582]
[1749430962089,2.18312638,105660.0,105650.0,0.1417582]
[1749430962386,2.22527726,105660.0,105650.0,0.1417582]
[1749430967291,2.2253201,105660.0,105650.0,0.1417582]
[1749430969485,2.2253201,105660.0,105650.0,0.1093582]
[1749430969984,2.2253201,105660.0,105650.0,0.12274282]
[1749430970594,2.2253201,105660.0,105650.0,0.1093582]
[1749430970781,2.2253201,105660.0,105650.0,0.1377582]
[1749430975493,1.5037201,105660.0,105650.0,0.1377582]
[1749430975695,2.2253201,105660.0,105650.0,0.1377582]
[1749430976202,2.2253201,105660.0,105650.0,0.0716582]
[1749430976203,2.34255751,105660.0,105650.0,0.0716582]
[1749430976404,2.2574201,105660.0,105650.0,0.08484451]
[1749430976701,2.2574201,105660.0,105650.0,0.08504451]
[1749430977301,2.25749778,105660.0,105650.0,0.08504451]
[1749430977806,1.81961778,105660.0,105650.0,0.0716582]
[1749430978008,2.25725778,105660.0,105650.0,0.1036582]
[1749430981511,2.25725778,105660.0,105650.0,0.0716582]
[1749430981711,2.37449519,105660.0,105650.0,0.0716582]
[1749430981909,2.37449519,105660.0,105650.0,0.08504929]
[1749430982499,2.37449519,105660.0,105650.0,0.08484929]
[1749430982500,2.02278296,105660.0,105650.0,0.08484929]
[1749430982705,2.37449519,105660.0,105650.0,0.08504929]
[1749430982904,2.37449519,105660.0,105650.0,0.0716582]
[1749430983209,2.37449519,105660.0,105650.0,0.08506018]
[1749430983413,2.37449519,105660.0,105650.0,0.0716582]
[1749430983911,2.37449519,105660.0,105650.0,0.08506018]
[1749430984807,2.37449519,105660.0,105650.0,0.0716582]
[1749430999716,2.39216223,105660.0,105650.0,0.0716582]
[1749431000710,2.24222482,105660.0,105650.0,0.0716582]
[1749431000911,2.24222482,105660.0,105650.0,0.1043582]
[1749431001112,2.24222482,105660.0,105650.0,0.1692582]
[1749431001410,2.35946223,105660.0,105650.0,0.1692582]
[1749431001817,2.24222482,105660.0,105650.0,0.1692582]
[1749431007423,2.35946223,105660.0,105650.0,0.1692582]
[1749431008525,2.24222482,105660.0,105650.0,0.1692582]
[1749431008914,2.24222482,105660.0,105650.0,0.1364582]
[1749431009313,2.35946223,105660.0,105650.0,0.1364582]
[1749431011626,2.39356223,105660.0,105650.0,0.1364582]
[1749431012022,2.39356223,105660.0,105650.0,0.0716582]
[1749431012919,0.1892117,105650.0,105640.0,0.21538178]
[1749431013119,0.85168652,105650.0,105640.0,0.21538178]
[1749431013320,0.85168652,105650.0,105640.0,0.0678]
[1749431013613,0.85168652,105650.0,105640.0,0.068]
[1749431014331,0.85168652,105650.0,105640.0,0.071]
[1749431014720,0.85168652,105650.0,105640.0,0.0750566]
[1749431015223,0.73444911,105650.0,105640.0,0.1085566]
[1749431015420,0.6172117,105650.0,105640.0,0.1085566]
[1749431015621,0.73444911,105650.0,105640.0,0.1085566]
[1749431016820,1.09524911,105650.0,105640.0,0.1085566]
[1749431017332,1.09524911,105650.0,105640.0,0.12283697]
[1749431017533,1.09524911,105650.0,105640.0,0.1085566]
[1749431017734,1.09524911,105650.0,105640.0,0.12283697]
[1749431018236,1.09524911,105650.0,105640.0,0.1085566]
[1749431018535,1.09524911,105650.0,105640.0,0.12283678]
[1749431019236,1.09524911,105650.0,105640.0,0.12283647]
[1749431019426,1.09524911,105650.0,105640.0,0.12283407]
[1749431020331,1.09524911,105650.0,105640.0,0.05593364]
[1749431020332,1.21248652,105650.0,105640.0,0.05593364]
[1749431020529,1.21248652,105650.0,105640.0,0.02133364]
[1749431020530,1.24848652,105650.0,105640.0,0.02133364]
[1749431020730,0.1892296,105640.0,105630.0,0.24922338]
[1749431021035,1.32462442,105640.0,105630.0,0.24922338]
[1749431021636,1.32462442,105640.0,105630.0,0.24942338]
[1749431022028,1.32462442,105640.0,105630.0,0.25142338]
[1749431022229,1.33430608,105640.0,105630.0,0.25142338]
[1749431023335,1.33430608,105640.0,105630.0,0.1038416]
[1749431023842,1.33430608,105640.0,105630.0,0.1036416]
[1749431024026,1.36690608,105640.0,105630.0,0.1036416]
[1749431024225,1.36690608,105640.0,105630.0,0.1038416]
[1749431025143,1.72770608,105640.0,105630.0,0.0711416]
[1749431025340,1.72770608,105640.0,105630.0,0.0709416]
[1749431025541,1.76080608,105640.0,105630.0,0.0709416]
[1749431025839,1.76080608,105640.0,105630.0,0.0711416]
[1749431026029,1.76080608,105640.0,105630.0,0.0352416]
[1749431026232,1.77787527,105640.0,105630.0,0.0352416]
[1749431026438,1.77787527,105640.0,105630.0,0.0350416]
[1749431026640,1.77787527,105640.0,105630.0,0.0352416]
[1749431029943,1.77787527,105640.0,105630.0,0.0392982]
[1749431030436,0.1892472,105630.0,105620.0,0.0688]
[1749431030631,0.66728461,105630.0,105620.0,0.1037]
[1749431030837,0.66728461,105630.0,105620.0,0.11716967]
[1749431031640,0.66728461,105630.0,105620.0,0.12018889]
[1749431032049,0.66728461,105630.0,105620.0,0.12018905]
[1749431032450,1.02808461,105630.0,105620.0,0.12018905]
[1749431032748,1.02808461,105630.0,105620.0,0.13440068]
[1749431032943,1.06078461,105630.0,105620.0,0.13440068]
[1749431033148,1.09388461,105630.0,105620.0,0.13440068]
[1749431033649,1.09388461,105630.0,105620.0,0.12018905]
[1749431033843,1.09388461,105630.0,105620.0,0.13439833]
[1749431034250,1.09388461,105630.0,105620.0,0.1313984]
[1749431034449,1.09388461,105630.0,105620.0,0.11718905]
[1749431034649,1.09388461,105630.0,105620.0,0.13144266]
[1749431037051,1.09388461,105630.0,105620.0,0.11795361]
[1749431037252,1.09388461,105630.0,105620.0,0.1314539]
[1749431037453,1.09388461,105630.0,105620.0,0.13145389]
[1749431037745,1.09388461,105630.0,105620.0,0.13145958]
[1749431037946,0.80156461,105630.0,105620.0,0.13146004]
[1749431038148,1.52316461,105630.0,105620.0,0.13145777]
[1749431038350,1.52316461,105630.0,105620.0,0.11719963]
[1749431038651,1.52316461,105630.0,105620.0,0.13145777]
[1749431039052,1.52316461,105630.0,105620.0,0.13147908]
[1749431039348,1.52316461,105630.0,105620.0,0.1314791]
[1749431040649,1.52316461,105630.0,105620.0,0.13148141]
[1749431041044,1.52316461,105630.0,105620.0,0.13147955]
[1749431041551,1.52316461,105630.0,105620.0,0.1172209]
[1749431041755,1.52316461,105630.0,105620.0,0.11722094]
[1749431041952,1.52316461,105630.0,105620.0,0.1314868]
[1749431042154,1.52316461,105630.0,105620.0,0.13148674]
[1749431043154,1.52316461,105630.0,105620.0,0.13148664]
[1749431043346,1.52316461,105630.0,105620.0,0.13148734]
[1749431044153,1.52316461,105630.0,105620.0,0.13554394]
[1749431044856,1.52316461,105630.0,105620.0,0.13559132]
[1749431045854,1.52316461,105630.0,105620.0,0.13559301]
[1749431046042,1.52316461,105630.0,105620.0,0.135593]
[1749431046555,1.52316461,105630.0,105620.0,0.13559552]
[1749431046947,1.52316461,105630.0,105620.0,0.13559561]
[1749431047650,1.52316461,105630.0,105620.0,0.13559551]
[1749431047850,1.52316461,105630.0,105620.0,0.13559603]
[1749431048051,1.52316461,105630.0,105620.0,0.12205233]
[1749431048249,1.45736461,105630.0,105620.0,0.13559818]
[1749431048450,1.45736461,105630.0,105620.0,0.13560079]
[1749431049260,1.45736461,105630.0,105620.0,0.13560123]
[1749431050955,1.45736461,105630.0,105620.0,0.13558277]
[1749431051457,1.45736461,105630.0,105620.0,0.13556787]
[1749431051657,1.3401272,105630.0,105620.0,0.1077566]
[1749431051861,1.49296461,105630.0,105620.0,0.13556711]
[1749431052053,1.49296461,105630.0,105620.0,0.13556745]
[1749431052255,1.52776461,105630.0,105620.0,0.12128757]
[1749431052455,1.52776461,105630.0,105620.0,0.13556747]
[1749431052759,1.52776461,105630.0,105620.0,0.13557037]
[1749431052956,1.52776461,105630.0,105620.0,0.1355731]
[1749431053358,1.52776461,105630.0,105620.0,0.13557241]
[1749431053562,1.52776461,105630.0,105620.0,0.12203939]
[1749431054163,1.52776461,105630.0,105620.0,0.13557242]
[1749431054365,0.80616461,105630.0,105620.0,0.13557242]
[1749431054560,1.52776461,105630.0,105620.0,0.13557242]
[1749431055059,1.52776461,105630.0,105620.0,0.13556936]
[1749431055261,0.80616461,105630.0,105620.0,0.13556771]
[1749431055456,0.80616461,105630.0,105620.0,0.12203633]
[1749431055457,1.52776461,105630.0,105620.0,0.12203633]
[1749431055662,1.52776461,105630.0,105620.0,0.12128799]
[1749431055864,1.52776461,105630.0,105620.0,0.13556994]
[1749431056062,1.52776461,105630.0,105620.0,0.13557094]
[1749431057267,1.52776461,105630.0,105620.0,0.13557431]
[1749431057473,1.52776461,105630.0,105620.0,0.1212884]
[1749431057667,1.52776461,105630.0,105620.0,0.12128842]
[1749431057875,1.52776461,105630.0,105620.0,0.13557436]
[1749431058482,1.52776461,105630.0,105620.0,0.13557468]
[1749431059277,1.52776461,105630.0,105620.0,0.12128842]
[1749431059482,1.52776461,105630.0,105620.0,0.12204969]
[1749431059682,1.52776461,105630.0,105620.0,0.13558459]
[1749431060181,1.52776461,105630.0,105620.0,0.13558469]
[1749431060584,1.52776461,105630.0,105620.0,0.12204619]
[1749431060883,1.52776461,105630.0,105620.0,0.1355891]
[1749431061778,1.45233215,105630.0,105620.0,0.13558905]
[1749431061972,1.56956956,105630.0,105620.0,0.13558905]
[1749431062482,1.56956956,105630.0,105620.0,0.1355899]
[1749431062786,1.56956956,105630.0,105620.0,0.135694]
[1749431062985,0.84796956,105630.0,105620.0,0.13569331]
[1749431063186,1.56956956,105630.0,105620.0,0.12215404]
[1749431063393,1.56956956,105630.0,105620.0,0.13569383]
[1749431063687,1.56956956,105630.0,105620.0,0.13569451]
[1749431064188,1.56956956,105630.0,105620.0,0.10089451]
[1749431064385,1.56956956,105630.0,105620.0,0.0873543]
[1749431064688,1.56956956,105630.0,105620.0,0.08649679]
[1749431064892,1.56956956,105630.0,105620.0,0.10089449]
[1749431065085,1.56956956,105630.0,105620.0,0.1008945]
[1749431065287,2.10896956,105630.0,105620.0,0.1008945]
[1749431065593,2.10896956,105630.0,105620.0,0.1358945]
[1749431065791,1.56956956,105630.0,105620.0,0.1358945]
[1749431066085,2.10892956,105630.0,105620.0,0.1358945]
[1749431066293,2.10892956,105630.0,105620.0,0.1079566]
[1749431066587,2.05789695,105630.0,105620.0,0.28346824]
[1749431066783,2.05789695,105630.0,105620.0,0.28347011]
[1749431066988,2.05789695,105630.0,105620.0,0.2834702]
[1749431068292,2.05789695,105630.0,105620.0,0.2834004]
[1749431068490,1.98749695,105630.0,105620.0,0.3862433]
[1749431068688,1.98749695,105630.0,105620.0,0.28333566]
[1749431068994,1.98749695,105630.0,105620.0,0.28333567]
[1749431069994,2.05629695,105630.0,105620.0,0.2833104]
[1749431070182,2.05625695,105630.0,105620.0,0.25553838]
[1749431070388,1.51693695,105630.0,105620.0,0.28331526]
[1749431070583,2.05625695,105630.0,105620.0,0.26992917]
[1749431070891,2.05625695,105630.0,105620.0,0.24833059]
[1749431071089,2.05625695,105630.0,105620.0,0.17943059]
[1749431071286,2.09015695,105630.0,105620.0,0.17947011]
[1749431071494,2.09015695,105630.0,105620.0,0.17946874]
[1749431071684,2.09015695,105630.0,105620.0,0.17947283]
[1749431071880,2.09015695,105630.0,105620.0,0.17947282]
[1749431072092,2.09015695,105630.0,105620.0,0.16502577]
[1749431072289,2.09015695,105630.0,105620.0,0.17941814]
[1749431072483,2.09015695,105630.0,105620.0,0.16502819]
[1749431072685,2.09015695,105630.0,105620.0,0.17941804]
[1749431073596,2.09015695,105630.0,105620.0,0.17941844]
[1749431073796,2.09015695,105630.0,105620.0,0.16602822]
[1749431075199,2.09015695,105630.0,105620.0,0.16600968]
[1749431075797,2.09015695,105630.0,105620.0,0.15163838]
[1749431075991,2.09015695,105630.0,105620.0,0.16599889]
[1749431076194,2.09015695,105630.0,105620.0,0.15163838]
[1749431076393,2.09015695,105630.0,105620.0,0.16599915]
[1749431077796,2.09015695,105630.0,105620.0,0.16600477]
[1749431078097,2.09015695,105630.0,105620.0,0.16600494]
[1749431078801,2.08092933,105630.0,105620.0,0.1794079]
[1749431079002,2.08092933,105630.0,105620.0,0.17940784]
[1749431079202,2.08092933,105630.0,105620.0,0.17940801]
[1749431079400,2.08092933,105630.0,105620.0,0.17940796]
[1749431079594,2.08092933,105630.0,105620.0,0.16504146]
[1749431079796,2.08092933,105630.0,105620.0,0.15163838]
[1749431080002,2.08092933,105630.0,105620.0,0.16602167]
[1749431081000,2.08092933,105630.0,105620.0,0.15163838]
[1749431081200,2.08092933,105630.0,105620.0,0.16602418]
[1749431081504,2.08092933,105630.0,105620.0,0.15163838]
[1749431081804,2.08092933,105630.0,105620.0,0.16602418]
[1749431082703,2.08092933,105630.0,105620.0,0.15163838]
[1749431082902,2.08092933,105630.0,105620.0,0.16602592]
[1749431083403,2.08092933,105630.0,105620.0,0.16602591]
[1749431084999,2.08092933,105630.0,105620.0,0.15163838]
[1749431085206,2.08092933,105630.0,105620.0,0.16602237]
[1749431085608,1.35932933,105630.0,105620.0,0.16602237]
[1749431085904,2.08092933,105630.0,105620.0,0.16602237]
[1749431086710,2.08092933,105630.0,105620.0,0.15163838]
[1749431086910,2.08092933,105630.0,105620.0,0.16602369]
[1749431087505,1.96369192,105630.0,105620.0,0.16602369]
[1749431087705,2.04702933,105630.0,105620.0,0.19862369]
[1749431087913,2.04702933,105630.0,105620.0,0.23172369]
[1749431088413,2.04702933,105630.0,105620.0,0.21733838]
[1749431088609,2.04702933,105630.0,105620.0,0.23172371]
[1749431090015,2.04702933,105630.0,105620.0,0.23172407]
[1749431090218,2.04702933,105630.0,105620.0,0.2317061]
[1749431090409,2.04702933,105630.0,105620.0,0.23170397]
[1749431091913,2.04702933,105630.0,105620.0,0.23170393]
[1749431092417,2.04702933,105630.0,105620.0,0.23170372]
[1749431093410,2.04702933,105630.0,105620.0,0.26500372]
[1749431093608,2.04702933,105630.0,105620.0,0.26500374]
[1749431093808,1.97778933,105630.0,105620.0,0.26500374]
[1749431094109,1.97778933,105630.0,105620.0,0.26500368]
[1749431094413,1.97778933,105630.0,105620.0,0.26500365]
[1749431095307,1.86055192,105630.0,105620.0,0.26501532]
[1749431095506,1.97778933,105630.0,105620.0,0.26501526]
[1749431095715,1.97778933,105630.0,105620.0,0.25063838]
[1749431096118,1.97778933,105630.0,105620.0,0.26501526]
[1749431097112,1.97778933,105630.0,105620.0,0.25063838]
[1749431097318,1.97778933,105630.0,105620.0,0.2650145]
[1749431097719,1.97778933,105630.0,105620.0,0.3028845]
[1749431098816,1.97778933,105630.0,105620.0,0.28850838]
[1749431099016,1.97778933,105630.0,105620.0,0.30288423]
[1749431099208,1.43890933,105630.0,105620.0,0.30288423]
[1749431099414,1.97770933,105630.0,105620.0,0.31726071]
[1749431100710,1.97770933,105630.0,105620.0,0.30288423]
[1749431100914,1.97770933,105630.0,105620.0,0.31725906]
[1749431101112,1.97770933,105630.0,105620.0,0.30288423]
[1749431101317,1.97770933,105630.0,105620.0,0.31725885]
[1749431102716,1.97770933,105630.0,105620.0,0.30288423]
[1749431103117,1.97770933,105630.0,105620.0,0.31725728]
[1749431103919,1.86047192,105630.0,105620.0,0.31725728]
[1749431104119,1.97770933,105630.0,105620.0,0.31725722]
[1749431104319,2.00910933,105630.0,105620.0,0.30288423]
[1749431104520,1.97766933,105630.0,105620.0,0.31725711]
[1749431105319,1.42411192,105630.0,105620.0,0.50652161]
[1749431105627,1.97766933,105630.0,105620.0,0.50652161]
[1749431105810,1.97766933,105630.0,105620.0,0.50650564]
[1749431106123,1.97766933,105630.0,105620.0,0.71318469]
[1749431107217,1.97766933,105630.0,105620.0,0.69882795]
[1749431107418,1.86043192,105630.0,105620.0,0.69882795]
[1749431107621,1.86043192,105630.0,105620.0,0.30288423]
[1749431107826,1.97766933,105630.0,105620.0,0.30288423]
[1749431108326,1.97766933,105630.0,105620.0,0.31723825]
[1749431109119,1.97766933,105630.0,105620.0,0.31723687]
[1749431109322,0.89239192,105630.0,105620.0,0.31723686]
[1749431109523,0.7216,105630.0,105620.0,1.11838852]
[1749431109723,0.70179776,105640.0,105630.0,0.1892468]
[1749431110026,0.81903517,105640.0,105630.0,0.68927184]
[1749431110217,0.81903517,105640.0,105630.0,0.78391112]
[1749431110418,0.92147517,105640.0,105630.0,0.87858567]
[1749431110919,0.92147517,105640.0,105630.0,0.87878567]
[1749431111118,0.92147517,105640.0,105630.0,0.8645008]
[1749431111315,0.81903517,105640.0,105630.0,0.87878687]
[1749431111519,0.92147517,105640.0,105630.0,0.87878687]
[1749431112629,0.92247517,105640.0,105630.0,0.87877557]
[1749431113931,0.92247517,105640.0,105630.0,0.87876965]
[1749431115028,0.92247517,105640.0,105630.0,0.91662965]
[1749431115527,0.92247517,105640.0,105630.0,0.9023608]
[1749431116432,0.80523776,105640.0,105630.0,0.9023608]
[1749431116822,0.7955561,105640.0,105630.0,0.9023608]
[1749431117128,0.7482448,105640.0,105630.0,0.9023608]
[1749431118023,0.7009345,105640.0,105630.0,0.9023608]
[1749431119628,0.7009345,105640.0,105630.0,0.8076968]
[1749431119835,0.7009345,105640.0,105630.0,0.9023608]
[1749431120135,0.7009345,105640.0,105630.0,0.9335608]
[1749431120433,0.7009345,105640.0,105630.0,0.9376174]
[1749431120621,0.7009345,105640.0,105630.0,0.8429534]
[1749431121935,0.7009345,105640.0,105630.0,0.72571599]
[1749431122128,0.7009345,105640.0,105630.0,0.8429534]
[1749431122531,0.3401345,105640.0,105630.0,0.8429534]
[1749431122737,0.7009345,105640.0,105630.0,0.8429534]
[1749431124837,0.6536098,105640.0,105630.0,1.05485481]
[1749431125033,0.6536098,105640.0,105630.0,1.35175481]
[1749431125239,0.6536098,105640.0,105630.0,1.2345174]
[1749431127537,0.00962028,105650.0,105640.0,0.1892282]
[1749431127735,0.6659609,105670.0,105660.0,0.1891924]
[1749431127934,0.6659609,105670.0,105660.0,1.13164084]
[1749431127935,1.2042809,105670.0,105660.0,1.13164084]
[1749431128241,1.2042809,105670.0,105660.0,1.32090643]
[1749431129443,0.6659609,105670.0,105660.0,1.32090643]
[1749431129642,1.2042409,105670.0,105660.0,1.32090643]
[1749431129944,1.21348342,105670.0,105660.0,1.32090643]
[1749431130241,1.21848342,105670.0,105660.0,1.32090643]
[1749431131145,1.21848342,105670.0,105660.0,1.08643161]
[1749431131338,1.21848342,105670.0,105660.0,1.20361264]
[1749431131530,1.21848342,105670.0,105660.0,1.278147]
[1749431131734,1.24918342,105670.0,105660.0,1.278147]
[1749431133634,1.64118342,105670.0,105660.0,0.76806597]
[1749431133829,1.64118342,105670.0,105660.0,0.41637357]
[1749431133830,1.75836445,105670.0,105660.0,0.41637357]
[1749431134142,1.75836445,105670.0,105660.0,0.16919995]
[1749431134535,1.75836445,105670.0,105660.0,0.16939995]
[1749431134840,1.75836445,105670.0,105660.0,0.35859255]
[1749431135039,1.75836445,105670.0,105660.0,0.39644255]
[1749431135444,1.75836445,105670.0,105660.0,0.40049915]
[1749431135742,1.75836445,105670.0,105660.0,0.21130655]
[1749431138736,1.75836445,105670.0,105660.0,0.35848017]
[1749431140349,1.75836445,105670.0,105660.0,0.45848017]
[1749431140843,1.75836445,105670.0,105660.0,0.36361458]
[1749431141046,1.75836445,105670.0,105660.0,0.0421066]
[1749431141347,1.75836445,105670.0,105660.0,0.0419066]
[1749431142140,1.75836445,105670.0,105660.0,0.0421066]
[1749431142946,1.75836445,105670.0,105660.0,0.0419066]
[1749431143249,1.75836445,105670.0,105660.0,0.0421066]
[1749431145748,2.11916445,105670.0,105660.0,0.0421066]
[1749431153255,0.1891909,105660.0,105650.0,0.0001416]
[1749431153460,0.84455296,105660.0,105650.0,0.0001416]
[1749431153654,0.87755296,105660.0,105650.0,0.0003416]
[1749431153960,0.87755296,105660.0,105650.0,0.0001416]
[1749431154160,0.87755296,105660.0,105650.0,0.0003416]
[1749431154954,0.88055296,105660.0,105650.0,0.0003416]
[1749431155764,0.88055296,105660.0,105650.0,0.01457166]
[1749431156558,0.88055296,105660.0,105650.0,0.01456872]
[1749431158261,0.88055296,105660.0,105650.0,0.01457211]
[1749431159471,0.88055296,105660.0,105650.0,0.01457477]
[1749431159672,0.88055296,105660.0,105650.0,0.01457466]
[1749431159861,0.88055296,105660.0,105650.0,0.0003416]
[1749431160260,0.88055296,105660.0,105650.0,0.01457466]
[1749431160767,0.88055296,105660.0,105650.0,0.01457474]
[1749431161176,0.88055296,105660.0,105650.0,0.01461556]
[1749431161475,0.88055296,105660.0,105650.0,0.0003416]
[1749431161677,0.88055296,105660.0,105650.0,0.01461572]
[1749431161974,0.88055296,105660.0,105650.0,0.01461517]
[1749431162167,0.69136206,105660.0,105640.0,0.14717362]
[1749431162370,0.1892268,105640.0,105630.0,0.37064562]
[1749431162670,0.66720783,105640.0,105630.0,0.16396758]
[1749431162870,0.72830783,105640.0,105630.0,0.16396758]
[1749431164078,0.76050783,105640.0,105630.0,0.14717362]
[1749431165072,0.83677663,105640.0,105630.0,0.0040566]
[1749431165778,0.7195956,105640.0,105630.0,0.0040566]
[1749431165981,0.80457663,105640.0,105630.0,0.0040566]
[1749431166178,1.1642956,105640.0,105630.0,0.1003566]
[1749431167072,1.28147663,105640.0,105630.0,0.1003566]
[1749431167880,0.74347663,105640.0,105630.0,0.1003566]
[1749431168174,1.28147663,105640.0,105630.0,0.24753022]
[1749431169482,1.28147663,105640.0,105630.0,0.1003566]
[1749431171483,1.28147663,105640.0,105630.0,0.0042566]
[1749431171484,1.34687663,105640.0,105630.0,0.0042566]
[1749431171676,1.37857663,105640.0,105630.0,0.0042566]
[1749431171876,1.37857663,105640.0,105630.0,0.0040566]
[1749431172071,1.37857663,105640.0,105630.0,0.0042566]
[1749431172578,0.1892447,105630.0,105620.0,0.01026095]
[1749431172777,1.27904676,105630.0,105620.0,0.01026095]
[1749431173087,1.27904676,105630.0,105620.0,0.02380707]
[1749431174083,1.27904676,105630.0,105620.0,0.02480707]
[1749431174883,1.27904676,105630.0,105620.0,0.01146095]
[1749431175085,1.27904676,105630.0,105620.0,0.02479421]
[1749431175285,1.27904676,105630.0,105620.0,0.02479422]
[1749431175680,1.27904676,105630.0,105620.0,0.0247963]
[1749431176081,1.27904676,105630.0,105620.0,0.02479662]
[1749431176280,1.27904676,105630.0,105620.0,0.01146095]
[1749431176587,1.27904676,105630.0,105620.0,0.02479078]
[1749431176785,1.27904676,105630.0,105620.0,0.0247915]
[1749431176973,1.27904676,105630.0,105620.0,0.02479155]
[1749431177178,1.27904676,105630.0,105620.0,0.01146095]
[1749431177378,1.27904676,105630.0,105620.0,0.0247916]
[1749431177784,1.27904676,105630.0,105620.0,0.01146095]
[1749431177981,1.27904676,105630.0,105620.0,0.02483121]
[1749431178182,1.27904676,105630.0,105620.0,0.02482571]
[1749431178682,1.27904676,105630.0,105620.0,0.01146095]
[1749431178884,1.27904676,105630.0,105620.0,0.0248284]
[1749431179082,1.27904676,105630.0,105620.0,0.01551755]
[1749431179389,1.27904676,105630.0,105620.0,0.02888442]
[1749431180282,1.27904676,105630.0,105620.0,0.01551755]
[1749431180486,1.27904676,105630.0,105620.0,0.028882]
[1749431180880,1.27904676,105630.0,105620.0,0.02889647]
[1749431182489,1.27904676,105630.0,105620.0,0.02890125]
[1749431183882,1.27904676,105630.0,105620.0,0.01551755]
[1749431184283,1.27904676,105630.0,105620.0,0.02888966]
[1749431184482,1.27904676,105630.0,105620.0,0.01531755]
[1749431184684,1.27904676,105630.0,105620.0,0.04341192]
[1749431184885,1.27904676,105630.0,105620.0,0.04321192]
[1749431185082,1.27904676,105630.0,105620.0,0.04343655]
[1749431186182,1.27904676,105630.0,105620.0,0.02897041]
[1749431186382,1.27904676,105630.0,105620.0,0.04341493]
[1749431187484,1.27904676,105630.0,105620.0,0.04341326]
[1749431187789,1.27904676,105630.0,105620.0,0.02897316]
[1749431188088,1.27904676,105630.0,105620.0,0.02996037]
[1749431188289,1.63984676,105630.0,105620.0,0.04341615]
[1749431189191,1.63984676,105630.0,105620.0,0.04343448]
[1749431189584,1.63984676,105630.0,105620.0,0.04343444]
[1749431189785,1.63984676,105630.0,105620.0,0.04343445]
[1749431190187,1.63984676,105630.0,105620.0,0.04346803]
[1749431190386,1.4054847,105630.0,105620.0,0.04346803]
[1749431190588,1.63984676,105630.0,105620.0,0.04346803]
[1749431190783,1.63984676,105630.0,105620.0,0.0434689]